Cogmind - Beta 9.6 @@@ ROGUE MODE // 2020.08.28 @ 01:21:22 Player: YppY Result: Self-destructed Performance ------------- Evolutions (5) 2500 Regions Visited (18) 3600 Robots Destroyed (168) 840 Value Destroyed (6237) 6237 Prototype IDs (27) 540 Alien Tech Used (0) 0 Bonus (4378) 4378 TOTAL SCORE: 18095 Bonus ------- High Alert Combat Kills 1582 Follower Combat Kills 2065 Aligned with FarCom 300 Met Imprinter 300 Built Enhanced Grunts 300 Met R17 at Cetus 500 Friendly Fire -669 Cogmind --------- Core Integrity 743/1000 Matter 271/300 Energy 480/480 System Corruption 0% Temperature Cool (0) Movement Walking (150) Ox1 Location -5/Warlord Parts ------- > --- POWER (2) -------- Improved Deuterium Engine Reinforced Deuterium Engine > --- PROPULSION (3) --- Carbon-fiber Leg Flexi-carbon Leg Flexi-carbon Leg > --- UTILITY (8) ------ Advanced Cooling System Coolant Injector Lightpack 2.0 Advanced Targeting Computer Heavy Armor Plating Layered Medium Armor Plating > --- WEAPON (4) ------- Arc Thrower Wave Gun Heavy Neutron Cannon Precision Rocket Launcher > --- INVENTORY (24) --- Light Angular Momentum Engine Light Fission Core Carbon-fiber Leg Carbon-fiber Leg Power Amplifier Improved Cooling System Advanced Cooling System Advanced Targeting Computer Energy Filter Weapon Cycler Improved Medium Armor Plating Advanced Hardlight Generator Wave Gun Precision Rocket Launcher Peak State ------------ > --- POWER ------------ Angular Momentum Engine Fission Core > --- PROPULSION ------- Carbon-fiber Leg Flexi-carbon Leg Flexi-carbon Leg > --- UTILITY ---------- Advanced Cooling System Advanced Cooling System Lightpack 2.0 Advanced Targeting Computer Layered Medium Armor Plating Centrium Medium Armor Plating Centrium Medium Armor Plating > --- WEAPON ----------- Advanced Variable Charge Gun Improved EM Pulse Cannon Heavy Plasma Cannon Precision Rocket Launcher > --- INVENTORY -------- Reinforced Deuterium Engine Carbon-fiber Leg Power Amplifier Advanced Heat Sink Advanced Heat Sink Advanced Cooling System Coolant Injector Advanced Targeting Computer Advanced Targeting Computer Energy Filter Weapon Cycler Layered Medium Armor Plating Medium Reflective Plating Wave Gun Wave Gun Advanced Variable Charge Gun Advanced Variable Charge Gun Improved EM Pulse Cannon Heavy Ion Cannon Heavy Plasma Cannon Neutron Cannon Precision Rocket Launcher Precision Rocket Launcher Precision Rocket Launcher [Rating: 116] Favorites ----------- Power Improved Deuterium Engine Engine Improved Deuterium Engine Power Core Light Nuclear Core Propulsion Flexi-carbon Leg Treads Light Treads Leg Flexi-carbon Leg Utility Lightpack 2.0 Device Improved Heat Sink Storage Lightpack 2.0 Processor Improved Targeting Computer Protection Improved Light Armor Plating Weapon Improved EM Pulse Cannon Energy Gun Heavy EM Shotgun Energy Cannon Improved EM Pulse Cannon Ballistic Gun Gauss Rifle Ballistic Cannon Light Cannon Launcher Precision Rocket Launcher Build | -11 -10 -10 -10 -9 -8 -7 -7 -7 -7 -6 -6 -6 -6 -6 -5 -5 -5 -5 ------- Run | Scr Mat Min Exi Min Mat Fac Low Low Zio Pro Fac Ext Cet Arc Fac Upp Upp War Slots Evolved 10 | . . . . . 4 2 . . . . 2 . . . 2 . . . Power 1 | . . . . . . . . . . . 1 . . . . . . . Propulsion 1 | . . . . . . . . . . . . . . . 1 . . . Utility 6 | . . . . . 2 2 . . . . 1 . . . 1 . . . Weapon 2 | . . . . . 2 . . . . . . . . . . . . . Parts Attached 106 | 5 2 8 1 . 20 7 2 3 7 1 7 11 2 . 10 15 5 . Power 14 | 1 . 1 . . 1 4 . . . . 3 2 . . 1 . 1 . Engine 6 | 1 . . . . . 1 . . . . 1 1 . . 1 . 1 . Core 8 | . . 1 . . 1 3 . . . . 2 1 . . . . . . Reactor . | . . . . . . . . . . . . . . . . . . . Propulsion 20 | 2 . 2 . . 4 1 1 . 2 . 1 3 . . 2 2 . . Treads 8 | 2 . . . . 4 1 1 . . . . . . . . . . . Leg 12 | . . 2 . . . . . . 2 . 1 3 . . 2 2 . . Wheel . | . . . . . . . . . . . . . . . . . . . Hover . | . . . . . . . . . . . . . . . . . . . Flight . | . . . . . . . . . . . . . . . . . . . Utility 33 | . 2 . 1 . 8 2 . 1 3 1 2 4 1 . 4 3 1 . Device 12 | . 1 . . . 3 . . 1 1 1 1 1 . . 2 1 . . Storage 3 | . . . 1 . 1 . . . 1 . . . . . . . . . Processor 5 | . 1 . . . 1 1 . . . . . 1 . . . 1 . . Hackware . | . . . . . . . . . . . . . . . . . . . Protection 13 | . . . . . 3 1 . . 1 . 1 2 1 . 2 1 1 . Artifact . | . . . . . . . . . . . . . . . . . . . Weapon 39 | 2 . 5 . . 7 . 1 2 2 . 1 2 1 . 3 10 3 . Energy Gun 11 | . . 1 . . 2 . . . . . . . 1 . . 5 2 . Energy Cannon 9 | . . . . . . . . 2 . . . 2 . . 3 1 1 . Ballistic Gun 8 | 2 . 1 . . 4 . . . 1 . . . . . . . . . Ballistic Cannon 2 | . . 1 . . 1 . . . . . . . . . . . . . Launcher 9 | . . 2 . . . . 1 . 1 . 1 . . . . 4 . . Special Weapon . | . . . . . . . . . . . . . . . . . . . Impact Weapon . | . . . . . . . . . . . . . . . . . . . Slashing Weapon . | . . . . . . . . . . . . . . . . . . . Piercing Weapon . | . . . . . . . . . . . . . . . . . . . Special Melee Weapon . | . . . . . . . . . . . . . . . . . . . Unidentified Prototypes 5 | . . . . . 1 1 . . . . 1 . 2 . . . . . Parts Lost 40 | . . 7 . . 7 1 1 1 . . 1 3 . . 5 13 1 . Power 2 | . . 1 . . . . . . . . . . . . 1 . . . Propulsion 6 | . . 2 . . 1 1 . . . . . . . . . 2 . . Utility 12 | . . 2 . . 2 . 1 . . . 1 1 . . 1 3 1 . Weapon 20 | . . 2 . . 4 . . 1 . . . 2 . . 3 8 . . Highest Loss Streak 7 | . . 7 . . 3 1 1 1 . . 1 3 . . 4 6 1 . Average Slot Usage (%) 86 | . 80 69 75 85 76 74 85 91 91 92 92 92 93 93 93 91 86 88 Engine 5 | . 14 . . . . . 7 7 7 7 8 6 6 6 5 5 10 11 Core 4 | . . 12 14 14 7 6 . . . . 3 6 6 6 5 5 . . Treads 6 | . 28 2 . . 14 11 15 15 12 . . . . . . . . . Leg 9 | . . 24 28 28 2 . . . 2 15 13 13 13 13 16 16 17 17 Device 10 | . 8 1 . . 7 7 7 14 14 15 17 12 13 13 11 10 11 11 Storage 6 | . . . 4 14 9 7 7 7 7 7 6 6 6 6 5 5 5 5 Processor 4 | . 1 . . . . 1 7 7 7 7 6 5 6 6 5 7 5 5 Protection 8 | . . . . . 5 7 8 7 6 7 8 13 13 13 16 13 11 11 Energy Gun 3 | . . 10 . . 7 7 . . . . . . 5 6 3 9 9 11 Energy Cannon 7 | . . . . . . . . 14 15 15 13 12 13 13 12 5 3 5 Ballistic Gun 9 | . 28 10 . . 15 23 23 15 12 7 6 6 . . . . . . Ballistic Cannon 1 | . . 1 14 14 5 . . . . . . . . . . . . . Launcher 4 | . . 4 14 14 1 . 6 . 1 7 6 6 6 6 5 5 6 5 Naked Turns 2 | . . 2 . . . . . . . . . . . . . . . . Heaviest Build 119 | 9 10 12 28 28 119 110 110 118 118 46 62 69 74 74 88 84 88 88 Greatest Support 60 | 40 40 40 20 20 43 40 43 43 43 30 32 40 40 40 55 60 55 55 Greatest Overweight (x) 5 | . . . 1 1 5 5 2 2 2 1 1 1 1 1 1 1 1 1 Average Overweight (x) 1 | . . . . 1 2 3 2 2 1 1 1 1 1 1 1 1 1 1 Largest Inventory Capacity 44 | 4 4 4 10 10 30 24 24 24 44 24 24 24 24 24 24 24 24 24 Average Capacity 22 | 4 4 4 5 10 24 24 24 24 24 24 24 24 24 24 24 24 24 24 Most Carried 24 | 4 4 4 5 5 16 19 21 21 24 24 24 24 24 24 24 20 15 14 Average Carried 16 | 1 2 2 3 5 8 17 20 18 21 23 22 22 23 21 20 16 13 14 Final Capacity 24 | 4 4 4 10 10 24 24 24 24 24 24 24 24 24 24 24 24 24 24 Final Carried 24 | 2 3 3 5 5 16 19 21 19 21 24 22 23 24 22 18 13 14 14 Class Distribution -------------------- 33% | Scavenger-Gunner 20% | Scavenger-Tank 13% | Scavenger-Skirmisher 9% | Mutant 7% | Commander-Tank 6% | Scavenger-Mutant 3% | Hauler-Mutant Dominant Class ---------------- Mutant | -10/Materials Mutant | -10/Mines Mutant | -10/Exiles Mutant | -9/Mines Scavenger-Skirmisher | -8/Materials Scavenger-Skirmisher | -7/Factory Scavenger-Gunner | -7/Lower Caves Scavenger-Gunner | -7/Lower Caves Scavenger-Gunner | -7/Zion Scavenger-Gunner | -6/Proximity Caves Scavenger-Gunner | -6/Factory Scavenger-Tank | -6/Extension Commander-Tank | -6/Cetus Commander-Tank | -6/Archives Scavenger-Tank | -5/Factory Scavenger-Tank | -5/Upper Caves Scavenger-Tank | -5/Upper Caves Scavenger-Tank | -5/Warlord Resources | -11 -10 -10 -10 -9 -8 -7 -7 -7 -7 -6 -6 -6 -6 -6 -5 -5 -5 -5 ----------- Run | Scr Mat Min Exi Min Mat Fac Low Low Zio Pro Fac Ext Cet Arc Fac Upp Upp War Matter Collected 3201 | 220 152 138 . 6 712 185 154 75 70 104 94 195 123 . 390 286 297 . Remotely . | . . . . . . . . . . . . . . . . . . . Salvage Created 5622 | . 177 47 . 17 985 240 230 . . 211 280 965 236 38 866 843 487 . Parts 289 | . 10 . . 4 54 17 6 . . 10 17 53 13 2 43 36 24 . Haulers Intercepted . | . . . . . . . . . . . . . . . . . . . Recyclers Shooed 2 | . . . . . . . . . . . . 1 . . 1 . . . Parts Field Recycled . | . . . . . . . . . . . . . . . . . . . Retrieved Matter . | . . . . . . . . . . . . . . . . . . . Parts Self-Destructed 44 | . . . . . . . 1 . 2 6 . . . . . 18 17 . Prevented 9 | . . . . . . . . . . 2 . . . . . 6 1 . Kills | -11 -10 -10 -10 -9 -8 -7 -7 -7 -7 -6 -6 -6 -6 -6 -5 -5 -5 -5 ------- Run | Scr Mat Min Exi Min Mat Fac Low Low Zio Pro Fac Ext Cet Arc Fac Upp Upp War Combat Hostiles Destroyed 139 | . 4 15 . 3 25 3 5 . . 10 3 16 6 . 16 18 15 . Guns 38 | . 4 2 . . 11 3 4 . . 1 1 3 1 . 1 6 1 . Cannons 38 | . . . . 1 7 . . . . 1 2 8 1 . 8 7 3 . AOE 62 | . . 13 . 2 7 . 1 . . 8 . 4 4 . 7 5 11 . Classes Destroyed 16 | . 1 1 . 1 5 1 2 . . . . 3 . . 2 . . . Worker 10 | . . . . . . 2 . . . . 2 . . . 6 . . . Builder 4 | . . . . . 1 1 . . . . . 1 . . 1 . . . Tunneler 3 | . . . . . . . . . . . . 1 . . 2 . . . Recycler 2 | . . . . . . . . . . . . 1 . . 1 . . . Operator 2 | . . . . . . . . . . . . 1 . 1 . . . . Watcher 7 | . . . . . 3 . . . . . 1 1 1 . 1 . . . Swarmer 33 | . . . . 3 3 . . . . 8 . 6 3 . . 4 6 . Grunt 43 | . 4 . . . 15 . 1 . . 1 1 3 2 . 6 3 7 . Brawler 2 | . . . . . 2 . . . . . . . . . . . . . Duelist 2 | . . . . . . . 1 . . . . . . . . 1 . . Sentry 18 | . . . . . 3 1 1 . . 1 2 7 . . 1 1 1 . Hunter 10 | . . . . . 2 2 . . . . . . . . 2 4 . . Programmer 7 | . . . . . . . . . . . . . . . 6 . 1 . Behemoth 2 | . . . . . . . . . . . . . . . 1 1 . . Cetus Guard 1 | . . . . . . . . . . . . . 1 . . . . . Assembled 15 | . . 15 . . . . . . . . . . . . . . . . Thug 2 | . . . . . . . 1 . . . . . . . . 1 . . Butcher 3 | . . . . . . . . . . . . . . . . 3 . . Guerrilla 1 | . . . . . . . . . . . . 1 . . . . . . Mutant 1 | . . . . . . . 1 . . . . . . . . . . . Best Kill Streak 15 | . 3 15 . 3 7 3 5 . . 4 2 6 3 1 9 4 8 . Combat Bots Only 15 | . 3 15 . 3 7 1 5 . . 4 1 4 3 . 4 4 8 . Max Kills in Single Turn 7 | . 1 4 . 2 2 2 1 . . 2 2 4 3 1 7 3 3 . Gunslinging . | . . . . . . . . . . . . . . . . . . . Exploded 4 | . . 4 . 2 2 . 1 . . 2 . 3 3 . 3 3 3 . Melee . | . . . . . . . . . . . . . . . . . . . Uniques/NPCs Destroyed . | . . . . . . . . . . . . . . . . . . . Combat | -11 -10 -10 -10 -9 -8 -7 -7 -7 -7 -6 -6 -6 -6 -6 -5 -5 -5 -5 -------- Run | Scr Mat Min Exi Min Mat Fac Low Low Zio Pro Fac Ext Cet Arc Fac Upp Upp War Damage Taken 8397 | . 269 545 . 17 1403 251 228 53 . 198 186 841 147 22 1762 2101 374 . Core 689 | . 55 128 . 9 117 . 17 . . 35 12 59 . . 101 156 . . Absorbed by Shields 211 | . . . . . 117 . . . . . . 63 31 . . . . . Core Remaining (%) 76 | 100 . . . 23 78 . . . . 92 . . . 91 . . . . Volleys Fired 272 | . 17 10 . 2 74 12 10 3 . 10 7 28 6 2 38 39 14 . Largest 4 | . 2 2 . 1 4 4 4 4 . 3 3 4 4 3 4 4 4 . Hottest 399 | . 40 40 . 35 132 121 107 107 . 166 166 209 239 239 399 308 261 . Shots Fired 719 | . 34 12 . 2 183 41 33 9 . 18 21 79 16 5 111 115 40 . Gun 384 | . 34 6 . . 130 41 30 7 . 4 7 26 3 1 21 55 19 . Cannon 263 | . . . . 1 48 . . . . 8 14 50 10 4 69 51 8 . Launcher 72 | . . 6 . 1 5 . 3 2 . 6 . 3 3 . 21 9 13 . Special . | . . . . . . . . . . . . . . . . . . . Kinetic 291 | . 34 6 . 1 139 36 30 7 . 4 7 26 1 . . . . . Thermal 202 | . . . . . 7 . . . . . . 9 7 3 67 89 20 . Explosive 72 | . . 6 . 1 5 . 3 2 . 6 . 3 3 . 21 9 13 . Electromagnetic 154 | . . . . . 32 5 . . . 8 14 41 5 2 23 17 7 . Robot Hit Streak 33 | . 9 3 . 1 33 10 6 4 . 8 13 31 8 7 12 28 19 . Robot Miss Streak 5 | . 3 2 . 1 5 3 2 2 . 1 1 4 1 . 3 2 2 . Penetration Max 1 | . . . . . . 1 . . . . . 1 . . . . . . Secondary Targets 2 | . . 1 . . 1 . . . . . . . . . . . . . Max Gunslinging Chain 1 | . . 1 . . 1 . . . . . . . . . . . . . Shots Hit Robots 484 | . 21 7 . 1 123 25 20 6 . 13 15 48 11 5 76 83 30 . Core Hits 344 | . 9 33 . 3 67 12 12 . . 15 10 44 15 4 61 33 26 . Critical Hits 10 | . . . . . 2 . 1 . . . 1 2 . . 2 2 . . Critical Kills 7 | . . . . . 1 . 1 . . . 1 2 . . 1 1 . . Critical Parts Destroyed 1 | . . . . . . . . . . . . . . . 1 . . . Melee Attacks . | . . . . . . . . . . . . . . . . . . . Impact . | . . . . . . . . . . . . . . . . . . . Slashing . | . . . . . . . . . . . . . . . . . . . Piercing . | . . . . . . . . . . . . . . . . . . . Sneak Attacks . | . . . . . . . . . . . . . . . . . . . Combat Hostiles . | . . . . . . . . . . . . . . . . . . . Follow-up Attacks . | . . . . . . . . . . . . . . . . . . . Damage Inflicted 19399 | . 265 967 . 152 2664 401 500 89 . 1003 374 2407 793 159 4568 3107 1950 . Guns 4741 | . 265 47 . . 1198 401 302 36 . 21 67 470 80 34 560 1008 252 . Cannons 5694 | . . . . 18 593 . . . . 208 295 1103 239 125 1689 1177 247 . Explosions 8964 | . . 920 . 134 873 . 198 53 . 774 12 834 474 . 2319 922 1451 . Melee . | . . . . . . . . . . . . . . . . . . . Ramming . | . . . . . . . . . . . . . . . . . . . Kinetic 2639 | . 265 47 . 18 1082 309 302 36 . 21 67 470 22 . . . . . Thermal 5338 | . . . . . 163 . . . . . . 193 193 99 2329 1838 523 . Explosive 8177 | . . 920 . 134 760 . 198 53 . 774 . 834 474 . 1765 922 1343 . Electromagnetic 3245 | . . . . . 659 92 . . . 208 307 910 104 60 474 347 84 . Impact . | . . . . . . . . . . . . . . . . . . . Slashing . | . . . . . . . . . . . . . . . . . . . Piercing . | . . . . . . . . . . . . . . . . . . . Highest Corruption 16 | . . 4 4 4 . . . . . . . . . . 3 9 9 16 Average Corruption 5 | . . 4 4 4 . . . . . . . . . . 2 3 9 12 Corruption Purged . | . . . . . . . . . . . . . . . . . . . Effects 76 | . . 5 9 2 . . . . . . . . . . 2 26 31 1 Message Errors 17 | . . 1 4 1 . . . . . . . . . . . 2 8 1 Matter Fused 21 | . . 2 2 1 . . . . . . . . . . . 6 10 . Heat Flow Errors 5 | . . . 1 . . . . . . . . . . . . 2 2 . Energy Discharges 10 | . . 2 . . . . . . . . . . . . . 5 3 . Parts Rejected 1 | . . . . . . . . . . . . . . . . . 1 . Data Loss (minor) 10 | . . . 2 . . . . . . . . . . . 1 6 1 . Data Loss (major) 1 | . . . . . . . . . . . . . . . . . 1 . Misfires 2 | . . . . . . . . . . . . . . . . . 2 . Targeting Errors 9 | . . . . . . . . . . . . . . . 1 5 3 . Overload Shots 1 | . . . . . . . . . . . . . . . 1 . . . Overflow Damage 582 | . . 43 . 18 29 . 19 19 . 29 . 57 . . 234 53 81 . Projectiles 142 | . . . . . . . . . . 13 . 55 . . 69 5 . . Explosions 440 | . . 43 . 18 29 . 19 19 . 16 . 2 . . 165 48 81 . Melee . | . . . . . . . . . . . . . . . . . . . Knockbacks 13 | . . . . . 13 . . . . . . . . . . . . . Impact . | . . . . . . . . . . . . . . . . . . . Kinetic 12 | . . . . . 12 . . . . . . . . . . . . . Secondary 1 | . . . . . 1 . . . . . . . . . . . . . Self-Inflicted Damage 608 | . . 124 . . 243 . . 43 . 26 16 32 . . . . 124 . Shots 17 | . . 4 . . 6 . . 1 . 1 1 1 . . . . 3 . Rammed . | . . . . . . . . . . . . . . . . . . . Targets Rammed . | . . . . . . . . . . . . . . . . . . . Kicked . | . . . . . . . . . . . . . . . . . . . Crushed . | . . . . . . . . . . . . . . . . . . . Highest Temperature 391 | . . 20 169 . 391 12 14 . . 114 223 378 85 81 174 364 193 . Average Temperature 86 | . . 10 87 . 103 5 10 . . 62 76 94 37 28 62 97 98 . Received Heat Transfer 1410 | . 150 115 . . 452 12 72 . . 36 48 168 30 . 135 129 63 . Effects 3 | . . . . . 3 . . . . . . . . . . . . . Shutdowns 1 | . . . . . 1 . . . . . . . . . . . . . Energy Bleed 1 | . . . . . 1 . . . . . . . . . . . . . Short Circuit 1 | . . . . . 1 . . . . . . . . . . . . . Siege Activations . | . . . . . . . . . . . . . . . . . . . Robots Corrupted 1 | . . . . . . . . . . . . 1 . . . . . . Combat Hostiles 1 | . . . . . . . . . . . . 1 . . . . . . Parts Fried 9 | . . . . . 1 . . . . 1 2 4 . 1 . . . . Impact Corruptions . | . . . . . . . . . . . . . . . . . . . Robots Melted . | . . . . . . . . . . . . . . . . . . . Combat Hostiles . | . . . . . . . . . . . . . . . . . . . Parts Melted 9 | . . . . . . . . . . . . . . . 3 4 2 . Heat Transferred 5986 | . . . . . 348 . . . . . . 275 249 137 2327 2141 509 . Parts Sabotaged . | . . . . . . . . . . . . . . . . . . . Parts Stolen 1 | . . . . . . . . 1 . . . . . . . . . . Parts Stripped . | . . . . . . . . . . . . . . . . . . . Power Chain Reactions 3 | . . . . . 2 . . . . . . . . . . . 1 . Missiles Intercepted . | . . . . . . . . . . . . . . . . . . . Alert | -11 -10 -10 -10 -9 -8 -7 -7 -7 -7 -6 -6 -6 -6 -6 -5 -5 -5 -5 ------- Run | Scr Mat Min Exi Min Mat Fac Low Low Zio Pro Fac Ext Cet Arc Fac Upp Upp War Peak Influence 1445 | . 111 43 . 85 415 188 . . . . 238 984 1445 663 1349 . . . Average Influence 337 | . 32 1 . 82 188 90 . . . . 139 390 1026 638 753 . . . Maximum Alert Level 4 | . . . . . 2 . . . . . 1 3 4 2 4 . . . Low Security (%) 49 | 100 100 100 . 100 46 100 . . . . 83 38 . . . . . . Level 1 22 | . . . . . 53 . . . . . 16 16 . . 29 . . . Level 2 10 | . . . . . . . . . . . . 28 7 100 7 . . . Level 3 11 | . . . . . . . . . . . . 15 51 . 37 . . . Level 4 6 | . . . . . . . . . . . . . 41 . 25 . . . Level 5 . | . . . . . . . . . . . . . . . . . . . High Security . | . . . . . . . . . . . . . . . . . . . Max Security . | . . . . . . . . . . . . . . . . . . . Squads Dispatched 17 | . 1 . . . 6 1 . . . . . 3 1 . 5 . . . Investigation 2 | . . . . . . 1 . . . . . . 1 . . . . . Extermination 2 | . . . . . . . . . . . . . . . 2 . . . Reinforcement 6 | . 1 . . . 3 . . . . . . 1 . . 1 . . . Assault 3 | . . . . . . . . . . . . 2 . . 1 . . . Garrison 4 | . . . . . 3 . . . . . . . . . 1 . . . Intercept . | . . . . . . . . . . . . . . . . . . . Construction Impeded 1 | . . . . . . . . . . . . . . . 1 . . . Haulers Reinforced . | . . . . . . . . . . . . . . . . . . . Stealth | -11 -10 -10 -10 -9 -8 -7 -7 -7 -7 -6 -6 -6 -6 -6 -5 -5 -5 -5 --------- Run | Scr Mat Min Exi Min Mat Fac Low Low Zio Pro Fac Ext Cet Arc Fac Upp Upp War Distress Signals 11 | . 1 . . . 7 . . . . . . 1 2 . . . . . Communications Jammed . | . . . . . . . . . . . . . . . . . . . Distress Signals . | . . . . . . . . . . . . . . . . . . . Times Spotted 223 | . 10 20 . 1 42 4 5 1 . 10 4 38 19 3 32 18 16 . Peak Tracking Total 20 | . 6 20 . 1 8 1 3 1 . 4 1 4 5 2 7 5 5 . Tactical Retreats 7 | . 1 2 . . 3 . . . . . . . . . 1 . . . Traps | -11 -10 -10 -10 -9 -8 -7 -7 -7 -7 -6 -6 -6 -6 -6 -5 -5 -5 -5 ------- Run | Scr Mat Min Exi Min Mat Fac Low Low Zio Pro Fac Ext Cet Arc Fac Upp Upp War Traps Triggered 1 | . . . . . . . . . . . . 1 . . . . . . Indirectly . | . . . . . . . . . . . . . . . . . . . Trap Hack Attempts . | . . . . . . . . . . . . . . . . . . . Triggered . | . . . . . . . . . . . . . . . . . . . Disarmed . | . . . . . . . . . . . . . . . . . . . Reprogrammed . | . . . . . . . . . . . . . . . . . . . Reused . | . . . . . . . . . . . . . . . . . . . Traps Extracted . | . . . . . . . . . . . . . . . . . . . Installed . | . . . . . . . . . . . . . . . . . . . Triggered 3 | . . . . . . . . . . 1 . . . . . 1 1 . Machines | -11 -10 -10 -10 -9 -8 -7 -7 -7 -7 -6 -6 -6 -6 -6 -5 -5 -5 -5 ---------- Run | Scr Mat Min Exi Min Mat Fac Low Low Zio Pro Fac Ext Cet Arc Fac Upp Upp War Machines Disabled 26 | . . . . . 2 1 . . . . 4 3 1 1 13 1 . . Max in Single Turn 7 | . . . . . 1 1 . . . . 2 1 1 . 7 1 . . Garrison Access 2 | . . . . . . . . . . . . . . . 2 . . . Machines Sabotaged . | . . . . . . . . . . . . . . . . . . . Garrisons Compromised . | . . . . . . . . . . . . . . . . . . . Overloaded Fab Kills . | . . . . . . . . . . . . . . . . . . . Fab Network Shutdowns . | . . . . . . . . . . . . . . . . . . . Hacking | -11 -10 -10 -10 -9 -8 -7 -7 -7 -7 -6 -6 -6 -6 -6 -5 -5 -5 -5 --------- Run | Scr Mat Min Exi Min Mat Fac Low Low Zio Pro Fac Ext Cet Arc Fac Upp Upp War Machines Accessed 31 | . 1 . 1 . 5 3 . 1 1 . . 11 4 1 3 . . . Terminals 26 | . 1 . . . 5 3 . . . . . 11 4 . 2 . . . Fabricators . | . . . . . . . . . . . . . . . . . . . Repair Stations . | . . . . . . . . . . . . . . . . . . . Recycling Units . | . . . . . . . . . . . . . . . . . . . Scanalyzers . | . . . . . . . . . . . . . . . . . . . Garrison Access 1 | . . . . . . . . . . . . . . . 1 . . . Total Hacks 78 | . 4 . 1 . 11 9 . 1 3 . . 18 7 18 6 . . . Successful 56 | . 3 . 1 . 8 3 . 1 3 . . 14 1 18 4 . . . Failed 22 | . 1 . . . 3 6 . . . . . 4 6 . 2 . . . Catastrophic . | . . . . . . . . . . . . . . . . . . . Database Lockouts . | . . . . . . . . . . . . . . . . . . . Manual 31 | . . . 1 . 8 3 . . . . . 9 6 1 3 . . . Terminals 54 | . 4 . . . 11 9 . . . . . 18 7 . 5 . . . Fabricators . | . . . . . . . . . . . . . . . . . . . Repair Stations . | . . . . . . . . . . . . . . . . . . . Recycling Units . | . . . . . . . . . . . . . . . . . . . Scanalyzers . | . . . . . . . . . . . . . . . . . . . Garrison Access 1 | . . . . . . . . . . . . . . . 1 . . . Terminal Hacks 38 | . 3 . 1 . 2 1 . 1 3 . . 7 . 18 2 . . . Record 19 | . 1 . . . . . . . . . . . . 18 . . . . Part Schematic 3 | . . . . . . . . . 3 . . . . . . . . . Open Door 7 | . . . . . . . . 1 . . . 6 . . . . . . Branch Access Points 1 | . . . . . . 1 . . . . . . . . . . . . Emergency Access Points 1 | . . . . . . . . . . . . . . . 1 . . . Alert Level 1 | . . . . . 1 . . . . . . . . . . . . . Unreport Threat 1 | . . . . . 1 . . . . . . . . . . . . . Locate Traps 2 | . . . . . . . . . . . . 1 . . 1 . . . Dispatch Records 1 | . 1 . . . . . . . . . . . . . . . . . Recall Investigation 1 | . 1 . . . . . . . . . . . . . . . . . EX-Prototype ID Bank 1 | . . . 1 . . . . . . . . . . . . . . . Fabricator Hacks . | . . . . . . . . . . . . . . . . . . . Repair Station Hacks . | . . . . . . . . . . . . . . . . . . . Recycling Unit Hacks . | . . . . . . . . . . . . . . . . . . . Scanalyzer . | . . . . . . . . . . . . . . . . . . . Garrison Access Hacks 1 | . . . . . . . . . . . . . . . 1 . . . Seal Access 1 | . . . . . . . . . . . . . . . 1 . . . Unauthorized Hacks 17 | . . . . . 6 2 . . . . . 7 1 . 1 . . . Terminals 17 | . . . . . 6 2 . . . . . 7 1 . 1 . . . Track 4 | . . . . . 3 1 . . . . . . . . . . . . Botnet 11 | . . . . . 3 . . . . . . 6 1 . 1 . . . Disrupt 2 | . . . . . . 1 . . . . . 1 . . . . . . Fabricators . | . . . . . . . . . . . . . . . . . . . Repair Stations . | . . . . . . . . . . . . . . . . . . . Recycling Units . | . . . . . . . . . . . . . . . . . . . Scanalyzers . | . . . . . . . . . . . . . . . . . . . Garrison Access . | . . . . . . . . . . . . . . . . . . . Data Cores Recovered 1 | . . . . . . . . . . . . 1 . . . . . . Used . | . . . . . . . . . . . . . . . . . . . Hacking Detections 19 | . 1 . . . 4 3 . . . . . 7 3 . 1 . . . Full Trace Events 2 | . . . . . . 1 . . . . . . 1 . . . . . Feedback Events . | . . . . . . . . . . . . . . . . . . . Feedback Blocked . | . . . . . . . . . . . . . . . . . . . Robot Schematics Acquired . | . . . . . . . . . . . . . . . . . . . Robots Built . | . . . . . . . . . . . . . . . . . . . Matter . | . . . . . . . . . . . . . . . . . . . Time . | . . . . . . . . . . . . . . . . . . . Total Robot Build Rating . | . . . . . . . . . . . . . . . . . . . Part Schematics Acquired 3 | . . . . . . . . . 3 . . . . . . . . . Parts Built . | . . . . . . . . . . . . . . . . . . . Matter . | . . . . . . . . . . . . . . . . . . . Time . | . . . . . . . . . . . . . . . . . . . Total Part Build Rating . | . . . . . . . . . . . . . . . . . . . Parts Repaired . | . . . . . . . . . . . . . . . . . . . Time . | . . . . . . . . . . . . . . . . . . . Parts Recycled . | . . . . . . . . . . . . . . . . . . . Recycled Matter . | . . . . . . . . . . . . . . . . . . . Retrieved Matter . | . . . . . . . . . . . . . . . . . . . Retrieved Components . | . . . . . . . . . . . . . . . . . . . Parts Scanalyzed . | . . . . . . . . . . . . . . . . . . . Part Schematics Acquired . | . . . . . . . . . . . . . . . . . . . Parts Damaged . | . . . . . . . . . . . . . . . . . . . Bothacking | -11 -10 -10 -10 -9 -8 -7 -7 -7 -7 -6 -6 -6 -6 -6 -5 -5 -5 -5 ------------ Run | Scr Mat Min Exi Min Mat Fac Low Low Zio Pro Fac Ext Cet Arc Fac Upp Upp War Used RIF Installer . | . . . . . . . . . . . . . . . . . . . Robots Hacked . | . . . . . . . . . . . . . . . . . . . Non-combat . | . . . . . . . . . . . . . . . . . . . Combat . | . . . . . . . . . . . . . . . . . . . Robot Hacks Applied . | . . . . . . . . . . . . . . . . . . . Relay Couplers Released 2 | . . . . . . . . . . . . . . . 2 . . . Machine Destruction 2 | . . . . . . . . . . . . . . . 2 . . . Robots Rewired 16 | . . . . . . . . . . . . 15 . . . 1 . . Allies Hacked . | . . . . . . . . . . . . . . . . . . . Hacks Repelled . | . . . . . . . . . . . . . . . . . . . Allies | -11 -10 -10 -10 -9 -8 -7 -7 -7 -7 -6 -6 -6 -6 -6 -5 -5 -5 -5 -------- Run | Scr Mat Min Exi Min Mat Fac Low Low Zio Pro Fac Ext Cet Arc Fac Upp Upp War Total Allies 36 | . . 3 . . . . . . . . . 27 5 . . 1 . . Largest Group 17 | . . 3 . . . . . . . . . 15 17 14 12 1 1 . Highest-Rated Group 1011 | . . 40 . . . . . . . . . 715 1011 934 749 29 29 . Highest-Rated Ally 156 | . . 16 . . . . . . . . . 156 156 143 94 29 29 . Total Orders . | . . . . . . . . . . . . . . . . . . . Ally Attacks 305 | . . 17 . . . . . . . . . 116 116 10 39 . 7 . Total Damage 7703 | . . 152 . . . . . . . . . 2808 2964 352 1302 . 125 . Kills 55 | . . 1 . . . . . . . . . 19 17 4 12 . 2 . Allies Corrupted . | . . . . . . . . . . . . . . . . . . . Allies Melted . | . . . . . . . . . . . . . . . . . . . Intel | -11 -10 -10 -10 -9 -8 -7 -7 -7 -7 -6 -6 -6 -6 -6 -5 -5 -5 -5 ------- Run | Scr Mat Min Exi Min Mat Fac Low Low Zio Pro Fac Ext Cet Arc Fac Upp Upp War Robot Analysis Total . | . . . . . . . . . . . . . . . . . . . Derelict Logs Recovered 8 | . . 1 . . . . . 1 2 3 . . . . . . 1 . Drone Launches . | . . . . . . . . . . . . . . . . . . . Drone Recoveries . | . . . . . . . . . . . . . . . . . . . Exploration | -11 -10 -10 -10 -9 -8 -7 -7 -7 -7 -6 -6 -6 -6 -6 -5 -5 -5 -5 ------------- Run | Scr Mat Min Exi Min Mat Fac Low Low Zio Pro Fac Ext Cet Arc Fac Upp Upp War Turns Passed 11221 | 70 207 291 446 22 1598 695 641 533 1631 596 480 1198 505 145 579 708 787 89 Spaces Moved 5751 | 51 90 195 346 13 599 264 296 260 912 368 272 531 310 85 287 335 478 59 Core 21 | 20 . 1 . . . . . . . . . . . . . . . . Treads 2214 | 31 90 4 . . 546 264 296 260 723 . . . . . . . . . Legs 3516 | . . 190 346 13 53 . . . 189 368 272 531 310 85 287 335 478 59 Wheels . | . . . . . . . . . . . . . . . . . . . Hover . | . . . . . . . . . . . . . . . . . . . Flight . | . . . . . . . . . . . . . . . . . . . Fastest Speed 50 | 50 160 50 120 150 150 200 200 200 150 150 150 150 150 150 150 150 150 150 Average Speed 167 | 116 160 120 127 150 211 227 200 200 176 150 153 154 150 150 150 150 150 150 Slowest Speed 270 | 160 160 160 150 150 270 260 200 200 200 150 155 155 150 150 150 150 150 150 Overloaded Moves . | . . . . . . . . . . . . . . . . . . . Propulsion Burnouts . | . . . . . . . . . . . . . . . . . . . Robots Hopped . | . . . . . . . . . . . . . . . . . . . Cave-ins Triggered 2 | . . . . . . . . . . . . . . . 1 1 . . Exploration Rate (%) 44 | 4 24 53 71 9 43 8 54 51 83 58 10 76 71 78 11 54 72 16 Regions Visited 18 Branch Regions 13 Pre-discovered Areas 3 | . . . . . . . . . 3 . . . . . . . . . Known Exits Taken 4 | . . . . . . 1 . . . . 1 . . 1 1 . . . Unknown Exits Taken 14 | 1 1 1 1 1 1 . 1 1 1 1 . 1 1 . . 1 1 . Scrap Searched 13 | . . 2 . . . . 2 3 3 2 . . . . . . 1 . Spaces Dug 87 | . . . . . . . . . . . . . . . 87 . . . Terrain Destroyed 751 | . . 35 . 12 23 . 13 35 . 45 1 20 55 . 235 103 174 . Melee . | . . . . . . . . . . . . . . . . . . . Projectile 39 | . . . . . 4 . 3 2 . . 1 3 1 . 8 16 1 . AOE 712 | . . 35 . 12 19 . 10 33 . 45 . 17 54 . 227 87 173 . Actions | -11 -10 -10 -10 -9 -8 -7 -7 -7 -7 -6 -6 -6 -6 -6 -5 -5 -5 -5 --------- Run | Scr Mat Min Exi Min Mat Fac Low Low Zio Pro Fac Ext Cet Arc Fac Upp Upp War Total 6840 | 62 119 238 353 14 802 331 321 266 934 397 325 850 341 100 350 456 522 59 Wait 229 | . 8 17 . . 72 39 10 . 1 16 7 24 7 8 4 . 16 . Move 5732 | 50 89 194 345 12 598 263 295 259 911 367 271 530 309 84 285 334 477 59 Hop . | . . . . . . . . . . . . . . . . . . . Pick Up 145 | 7 3 7 4 . 30 8 3 1 9 3 17 16 9 2 7 12 7 . Fast Attach . | . . . . . . . . . . . . . . . . . . . Attach 74 | 5 2 5 1 . 16 4 . 3 4 . 3 6 . . 7 14 4 . Detach 1 | . . . . . 1 . . . . . . . . . . . . . Swap 32 | . . 3 . . 4 3 2 . 3 1 4 5 2 . 3 1 1 . Drop 73 | . . 2 3 . 7 2 1 . 6 . 16 12 8 4 4 5 3 . Fire 272 | . 17 10 . 2 74 12 10 3 . 10 7 28 6 2 38 39 14 . Melee . | . . . . . . . . . . . . . . . . . . . Ram . | . . . . . . . . . . . . . . . . . . . Kick . | . . . . . . . . . . . . . . . . . . . Crush . | . . . . . . . . . . . . . . . . . . . Escape Stasis 6 | . . . . . . . . . . . . 5 . . 1 . . . Rewire 276 | . . . . . . . . . . . . 224 . . 1 51 . . Trap . | . . . . . . . . . . . . . . . . . . . Miscellaneous . | . . . . . . . . . . . . . . . . . . . Route ------- -11/Scrapyard -10/Materials -10/Mines -10/Exiles (discovered 2 exits: [*Min x2]) -9/Mines -8/Materials -7/Factory (discovered 3 exits: Sto / *Low x2) -7/Lower Caves -7/Lower Caves -7/Zion -6/Proximity Caves -6/Factory (discovered 3 exits: Fac / Low / *Ext) -6/Extension (discovered 2 exits: *Fac / *Cet) -6/Cetus (discovered 2 exits: *Fac / *Arc) -6/Archives (discovered 3 exits: *Fac / [*Hub x2]) -5/Factory -5/Upper Caves -5/Upper Caves (discovered 2 exits: [*Fac] / [*War]) -5/Warlord History --------- Turn | Location | Event 8 | -11/Scrapyard | Discovered new exit (range 15) 71 | -11/Scrapyard | Entered Materials 191 | -10/Materials | Discovered new exit (range 15) 278 | -10/Materials | Entered Mines 279 | -10/Mines | Assembled infested the area 283 | -10/Mines | Assisted by bots powering up and referring to "LRC-V3" 299 | -10/Mines | Core integrity fell below 50% 328 | -10/Mines | Destroyed 15 combat bots 333 | -10/Mines | Lost 7 parts (1p2n2u2w) 350 | -10/Mines | Build established: Mutant 480 | -10/Mines | Received a Rocket Launcher from a helpful Derelict 523 | -10/Mines | Learned 2 Materials zone layouts 563 | -10/Mines | Deemed a non-threat by the Exiles lab entrance 564 | -10/Mines | Discovered new exit (range 5) 569 | -10/Mines | Entered Exiles 585 | -10/Exiles | Discovered new exit (range 15) 598 | -10/Exiles | Met 8R-AWN 619 | -10/Exiles | Met EX-HEX 651 | -10/Exiles | Met EX-BIN 715 | -10/Exiles | Aligned with FarCom system 716 | -10/Exiles | Given EX-Vault access code 745 | -10/Exiles | Opened EX-Vault 757 | -10/Exiles | Found Lightpack 2.0 784 | -10/Exiles | Warned to stay clear of 0b10 Research branches 818 | -10/Exiles | Met EX-DEC 1002 | -10/Exiles | Discovered new exit (range 10) 1015 | -10/Exiles | Left Exiles lab with Lightpack 2.0 1015 | -10/Exiles | Entered Mines 1021 | -9/Mines | Discovered new exit (range 11) 1037 | -9/Mines | Entered Materials 1037 | -8/Materials | Evolved 4 slots: Utility x2, Weapon x2 1354 | -8/Materials | Destroyed 7 combat bots 1354 | -8/Materials | Lost 3 parts (3w) 1618 | -8/Materials | Build established: Hauler-Mutant 1621 | -8/Materials | Garrison activated, responded to threat 2062 | -8/Materials | Build established: Scavenger-Skirmisher 2607 | -8/Materials | Discovered new exit (range 10) 2635 | -8/Materials | Entered Factory 2635 | -7/Factory | Evolved 2 slots: Utility x2 2649 | -7/Factory | Identified exit to Storage 2649 | -7/Factory | Identified exit to Lower Caves 3330 | -7/Factory | Entered Lower Caves 3419 | -7/Lower Caves | Attracted the attention of an 0b10 checkpoint 3447 | -7/Lower Caves | Attacked by a faux Warlord 3716 | -7/Lower Caves | Build established: Scavenger-Gunner 3909 | -7/Lower Caves | Discovered new exit (range 15) 3971 | -7/Lower Caves | Entered another Lower Caves area 3977 | -7/Lower Caves | Missile Launcher stolen by Master Thief 4023 | -7/Lower Caves | Learned Factory non-interactive machine intel 4048 | -7/Lower Caves | Encountered a Warlord checkpoint 4468 | -7/Lower Caves | Discovered new exit (range 16) 4504 | -7/Lower Caves | Entered Zion 4524 | -7/Zion | Given A8's code to call for help 4640 | -7/Zion | Discovered new exit (range 12) 4923 | -7/Zion | Learned location of Warlord (-5) 5090 | -7/Zion | Learned location of 1 exit from Factory 5129 | -7/Zion | Learned location of Data Miner (-6) 5237 | -7/Zion | Visited the Megawrench Repair Shop 5496 | -7/Zion | Rebuked by Imprinter 5719 | -7/Zion | Learned location of 2 exits from Factory 5802 | -7/Zion | Acquired unknown access codes intercepted by a Zionite 5950 | -7/Zion | Megawrench repaired 6 parts 6135 | -7/Zion | Entered Proximity Caves 6292 | -6/Proximity Caves | Attracted the attention of an 0b10 checkpoint 6328 | -6/Proximity Caves | Spotted B-75 Beast 6495 | -6/Proximity Caves | Learned Factory stockpile data 6559 | -6/Proximity Caves | Learned Factory emergency access door positions 6694 | -6/Proximity Caves | Discovered new exit (range 8) 6731 | -6/Proximity Caves | Entered Factory 6731 | -6/Factory | Evolved 2 slots: Power x1, Utility x1 6732 | -6/Factory | Identified exit to Extension 6732 | -6/Factory | Identified exit to Factory 6732 | -6/Factory | Identified exit to Lower Caves 6735 | -6/Factory | Loaded intel: 188 non-interactive machine locations 7211 | -6/Factory | Entered Extension 7379 | -6/Extension | Rescued a captive Derelict 7380 | -6/Extension | Rescued a captive Derelict 7792 | -6/Extension | Spotted B-75 Beast 7805 | -6/Extension | Spotted B-75 Beast 7818 | -6/Extension | Allies destroyed B-75 Beast 7831 | -6/Extension | Allies destroyed B-75 Beast 7858 | -6/Extension | Lost 3 parts (1u2w) 7911 | -6/Extension | First assault squad dispatched 7913 | -6/Extension | Rescued a captive Derelict 7917 | -6/Extension | Rescued a captive Derelict 7950 | -6/Extension | Rescued a captive Derelict 7953 | -6/Extension | Enhanced Grunt warped into view, answering call for help 7953 | -6/Extension | Enhanced Grunt warped into view, answering call for help 8048 | -6/Extension | Rescued a captive Derelict 8049 | -6/Extension | Rescued a captive Derelict 8121 | -6/Extension | Build established: Scavenger-Tank 8141 | -6/Extension | Rescued A7 8199 | -6/Extension | Rescued a captive Derelict 8200 | -6/Extension | Rescued a captive Derelict 8331 | -6/Extension | Discovered exit to Factory (range 10) 8332 | -6/Extension | Discovered new exit (range 6) 8388 | -6/Extension | Disrupted transfer network 8409 | -6/Extension | Entered Cetus 8409 | -6/Cetus | Accompanied by 14 allies 8414 | -6/Cetus | Acquired a Cetus Manufacturing Module code from A7 8429 | -6/Cetus | Spotted Cetus Guard 8429 | -6/Cetus | Spotted Cetus Guard 8431 | -6/Cetus | Spotted Cetus Guard 8434 | -6/Cetus | Spotted Cetus Guard 8441 | -6/Cetus | Allies destroyed Cetus Guard 8442 | -6/Cetus | Allies destroyed Cetus Guard 8445 | -6/Cetus | Allies destroyed Cetus Guard 8447 | -6/Cetus | Allies destroyed Cetus Guard 8528 | -6/Cetus | Started Cetus Manufacturing Module 8553 | -6/Cetus | Manufactured an Enhanced Grunt 8578 | -6/Cetus | Manufactured an Enhanced Grunt 8603 | -6/Cetus | Manufactured an Enhanced Grunt 8628 | -6/Cetus | Manufactured an Enhanced Grunt 8653 | -6/Cetus | Manufactured an Enhanced Grunt 8665 | -6/Cetus | Discovered new exit (range 15) 8691 | -6/Cetus | Spotted Cetus Guard 8692 | -6/Cetus | Spotted Cetus Guard 8695 | -6/Cetus | Spotted Cetus Guard 8695 | -6/Cetus | Spotted Cetus Guard 8704 | -6/Cetus | Discovered exit to Factory (range 15) 8706 | -6/Cetus | Allies destroyed Cetus Guard 8708 | -6/Cetus | Destroyed Cetus Guard 8710 | -6/Cetus | Allies destroyed Cetus Guard 8714 | -6/Cetus | Met Revision 17 8914 | -6/Cetus | Entered Archives 8914 | -6/Archives | Accompanied by 14 allies 8951 | -6/Archives | Discovered exit to Factory (range 15) 8955 | -6/Archives | Build established: Commander-Tank 8970 | -6/Archives | Discovered new exit (range 15) 8981 | -6/Archives | Unable to access archive contents 8987 | -6/Archives | Discovered new exit (range 16) 8996 | -6/Archives | Unable to access archive contents 9011 | -6/Archives | Unable to access archive contents 9059 | -6/Archives | Entered Factory 9059 | -5/Factory | Accompanied by 12 allies 9059 | -5/Factory | Evolved 2 slots: Propulsion x1, Utility x1 9060 | -5/Factory | Identified exit to Upper Caves 9229 | -5/Factory | Garrison activated, responded to threat 9420 | -5/Factory | Spotted B-75 Beast 9430 | -5/Factory | Destroyed B-75 Beast 9527 | -5/Factory | Lost 4 parts (1u3w) 9613 | -5/Factory | Crushed by falling debris 9638 | -5/Factory | Entered Upper Caves 9663 | -5/Upper Caves | Spotted B-75 Beast 9689 | -5/Upper Caves | Ambushed by wild Derelicts 9895 | -5/Upper Caves | Build established: Scavenger-Tank 9934 | -5/Upper Caves | Destroyed B-75 Beast 9964 | -5/Upper Caves | Lost 6 parts (2u4w) 10077 | -5/Upper Caves | Encountered a Warlord checkpoint 10215 | -5/Upper Caves | Discovered new exit (range 10) 10220 | -5/Upper Caves | Attracted the attention of an 0b10 outpost 10262 | -5/Upper Caves | Crushed by falling debris 10293 | -5/Upper Caves | Lost 4 parts (1n1u2w) 10346 | -5/Upper Caves | Entered another Upper Caves area 10346 | -5/Upper Caves | Accompanied by 1 ally 10346 | -5/Upper Caves | Discovered new exit (range 8) 10853 | -5/Upper Caves | Learned Factory stockpile data 10865 | -5/Upper Caves | Attracted the attention of an 0b10 checkpoint 10924 | -5/Upper Caves | Destroyed 8 combat bots 11100 | -5/Upper Caves | Spotted B-75 Beast 11113 | -5/Upper Caves | Discovered new exit (range 13) 11133 | -5/Upper Caves | Entered Warlord 11154 | -5/Warlord | System corruption reached 10% 11190 | -5/Warlord | System corruption cleaned by Quarantine Array 11222 | -5/Warlord | Self-destructed Last Messages --------------- 10912_ Autogun fries itself beyond repair. 10918_ The unstable cave ceiling collapses. 10939_ System corrupted: Heat flow error (+172). 10956_ WG&I9KGRLYJGEWX6KQTNQL1P 0QR YJ0KZ77DDS 10980_ System corrupted: Energy discharge (-172). 11004_ System corrupted: Substantial component data lost. 11022_ System corrupted: FCS attempts to trigger Wave Gun. 11022_ System corrupted: Wave Gun targeting data glitched. 11022_ System corrupted: Wave Gun misfires. 11038_ System corrupted: Matter fused (-9). 11074_ System corrupted: Matter fused (-10). 11092_ System corrupted: Component data lost. 11109_ System corrupted: Arc Thrower rejected. 11109_ Acquired Arc Thrower. 11113_ EXIT=FOUND LOCATION=UNKNOWN GOAL=ESCAPE 11166_ W ENRHE W&UH>TO>YJD>TL %LYJUL/4P6OCH 11190_ System quarantine in progress... 11190_ ANNOUNCEMENT: Quarantine Array scanned 1 system, cleaned 1. Map ----- +----------------------------------------------------+ | ?????????????????????????????????????????????????? | | ?????????????????????????????????????????????????? | | ?????????????????????????????????????????????????? | | ?????????????????????????????????????????????????? | | ?????????????????????????????????????????????????? | | ?????????????????????????????????????????????????? | | ?????????????????????????????????????????????????? | | ?????????????????????????????????????????????????? | | ?????????????????????????????????????????????????? | | ?????????????????????????????????????????????????? | | ??????????????????????? ???????????????????????? | | ??????????????????????# ???????????????????????# | | ?????????????????????? ???????????????????????# | | ??????????????????????# ???????????????????????? | | ??????????????????????# ???????????????????????? | | ??????????????????????# ???????????????????????? | | ??????????????????????# ???????????????????????? | | ??????????????????????# #??????""??????????????? | | ??????????????????????# #?????#""#?????????????? | | ??????????????????????# #?????#""#?????????????? | | ???????????????????#### #######""#####?????????? | | ???????????????????# # "" "########### | | ???????????????????#BB # "" """""""""""" | | ??????????????#+####BB # "" """""""""""" | | ??????????????# + ^ | | ??????????????# @ + | | ??????????????# +^ ^ ^ | | ??????????????# + ^ | | ??????????????# #BB # "" """""""""""" | | ??????????????# ??#BB # "" """""""""""" | | ???????????????????# # "" "########### | | ???????????????????#### #######""#####?????????? | | ????????????????????? #?????#""#?????????????? | | ???????????????????? #?????#""#?????????????? | | ??????????????????? """ ???????""??????????????? | | ?????????????????? """ ???????????????????????? | | ?????????????????????"" ???????????????????????? | | ?????????????????????? ???????????????????????? | | ?????????????????????? ???????????????????????? | | ??????????????????????" ???????????????????????? | | ??????????????????????? ???????????????????????? | | ?????????????????????????????????????????????????? | | ?????????????????????????????????????????????????? | | ?????????????????????????????????????????????????? | | ?????????????????????????????????????????????????? | | ?????????????????????????????????????????????????? | | ?????????????????????????????????????????????????? | | ?????????????????????????????????????????????????? | | ?????????????????????????????????????????????????? | | ?????????????????????????????????????????????????? | +----------------------------------------------------+ Best States ------------- Heat Dissipation 102 Coolant Potential 65 Energy Generation 31 Energy Capacity 510 Matter Stores 300 Matter Capacity 300 Sight Range 16 Terrain Scan Density 10 Armor Coverage 825 Resistance: TH 15 Resistance: EM 15 Evasion (%) 50 Targeting Accuracy 16 Recoil Reduction 2 Energy Filtering 30 Particle Charging 15 Item Schematics ----------------- Beamcaster | -7/Zion | Free Hvy. Riot Gun | -7/Zion | Free Slug Cannon | -7/Zion | Free Robot Schematics ------------------ None Fabricated ------------ Nothing Alien Tech Used ----------------- None Achievements -------------- Exterminator Project G-00 Challenges ------------ None Game ------ Seed XenonGravmagVibroblade Manual? 0 Play Time 01:42:25 Cumulative 87.8 hours Start 2020.07.12 @ 22:35:37 End 2020.08.28 @ 01:21:22 Sessions 13 Manual Loads 0 Difficulty Rogue Special Mode None Game No. 71 Rogue 71 Adventurer 0 Explorer 0 Win Type - Total 2 Types 1/0/0/1/0/0/0 Lore% 59 Gallery% 66 Achievement% 52 Wizard Run 0 Options --------- ASCII 0 Keyboard 0 Movement Numpad Keybinds 0 Fullscreen 1 Font 18/SmallcapsGlow Map View 76x50 Tactical HUD 1 Map Filters NONE Filters NONE Steam 1 RUN: 698f38f0-65dc-464d-b9f0-b95736395a00